[Event "XX Gran Hotel Bali-A 2023"]
[Site "Benidorm"]
[Date "2023.12.02"]
[Round "1.1"]
[White "Grigoryan, Karen H."]
[Black "Jerie, Sven"]
[Result "1-0"]
[ECO "E15"]
[WhiteElo "2646"]
[BlackElo "2055"]
[Annotator "TA"]
[PlyCount "75"]
[EventDate "2023.12.02"]
[EventType "swiss"]
[EventCountry "ESP"]
[SourceTitle "playchess.com"]
[Source "ChessBase"]
[SourceQuality "1"]
[TimeControl "5400+30"]

{[%evp 19,75,0,11,-26,0,0,79,72,90,91,112,104,149,146,146,114,190,178,178,178,233,218,204,195,195,191,203,197,200,201,204,189,199,200,207,202,206,205,223,216,210,210,227,225,227,227,226,226,226,219,195,208,290,290,331,331,331,324]} 1. d4 {[%emt 0:00:30]} Nf6 {[%emt 0:00:12]} 2. c4 {[%emt 0:00:00]} e6 {[%emt 0:00:18]} 3. g3 {[%emt 0:00:00]} d5 {[%emt 0:00:48]} 4. Nf3 {[%emt 0:00:04]} Bb4+ {[%emt 0:02:07]} 5. Bd2 {[%emt 0:00:22]} Be7 {[%emt 0:00:36]} 6. Bg2 {[%emt 0:00:08]} O-O {[%emt 0:00:47]} 7. O-O {[%emt 0:00:07]} c6 {[%emt 0:07:09]} 8. Qc2 {[%emt 0:00:07]} b6 {[%emt 0:00:38]} 9. Rd1 {[%emt 0:01:09]} Ba6 {[%emt 0:03:57]} 10. b3 {[%emt 0:00:53]} Nbd7 {[%emt 0:06:23]} 11. Nc3 {[%emt 0:01:26][%cal Bb1c3,Bc3a4,Ba4b2,Bb2d3,Bd3b4][%mdl 32] E15: Queen's Indian: 4 g3 sidelines, 4 g3 Ba6 and 4 g3 Bb7 early deviations.} Rc8 {[%emt 0:02:19]} 12. e4 {[%emt 0:00:20][%cal Be2e4,Be4e5][%mdl 32] [#]} b5 $146 {[%emt 0:07:02]} (12... dxc4 $11 13. Bf4 h6) ({Predecessor:} 12... dxc4 13. Bf4 Bb4 14. Nd2 b5 15. bxc4 bxc4 16. a3 Ba5 17. Bd6 Re8 18. e5 Nd5 {0-1 Gallego Alcaraz,A (2512)-Wojtaszek,R (2698) Online Olym Div Top-D rapid 2021 (7.1)}) 13. e5 $16 {[%emt 0:00:45] White is better.} Ne8 {[%emt 0:01:04]} 14. c5 {[%emt 0:01:06]} b4 {[%emt 0:07:07]} 15. Na4 {[%emt 0:00:34]} Rb8 {[%emt 0:01:35]} 16. Re1 {[%emt 0:02:14] Against Be2} Nc7 {[%emt 0:03:27]} 17. Nb2 {[%emt 0:00:37] White is more active.} Bc8 {[%emt 0:04:25]} (17... g5 $16) 18. Nd3 $18 {[%emt 0:00:39]} a5 {[%emt 0:07:36]} 19. a3 {[%emt 0:00:37]} Na6 {[%emt 0:19:21]} (19... Ba6 $142 20. axb4 Bxd3 {[%mdl 64] Remove Defender} 21. Qxd3 axb4) 20. axb4 {[%emt 0:00:47]} Nxb4 {[%emt 0:00:20]} 21. Bxb4 {[%emt 0:01:01]} axb4 {[%emt 0:00:09]} 22. Ra4 {[%emt 0:00:19]} Qc7 {[%emt 0:03:56]} 23. Nxb4 {[%emt 0:00:50]} ({Much less strong is} 23. Rxb4 $6 Ba6 $16) 23... Bb7 {[%emt 0:03:45]} 24. Bf1 {[%emt 0:02:13][%cal Bg2f1,Bf1a6,Ba6d3][%mdl 32]} (24. Ra7 Ra8 25. Ra4 h6 $16) 24... Ra8 {[%emt 0:01:00]} 25. Na6 {[%emt 0:01:26]} Bxa6 {[%emt 0:00:59]} 26. Bxa6 {[%emt 0:00:11]} ({Don't take} 26. Rxa6 Rxa6 27. Bxa6 Rb8) 26... Ra7 {[%emt 0:02:01]} 27. b4 {[%emt 0:01:53]} Rfa8 {[%emt 0:00:37]} 28. Rea1 {[%emt 0:00:25]} Nb8 {[%emt 0:01:47][%cal Ra7a6]} 29. Bd3 {[%emt 0:00:22]} g6 {[%emt 0:01:11]} 30. h4 {[%emt 0:00:48]} Nd7 {[%emt 0:05:37]} 31. b5 {[%emt 0:00:27]} cxb5 {[%emt 0:00:28]} 32. Rxa7 {[%emt 0:01:04]} Rxa7 {[%emt 0:00:03]} 33. Rxa7 {[%emt 0:00:08]} Qxa7 {[%emt 0:00:06]} 34. c6 {[%emt 0:00:13][%cal Bc5c6,Bc6c7][%mdl 32]} Nb6 {[%emt 0:00:42] [#]} 35. c7 $1 {[%emt 0:00:14]} Qb7 {[%emt 0:02:28]} 36. Bxb5 {[%emt 0:00:14] White has a decisive advantage.} Qc8 {[%emt 0:00:28] Black is weak on the light squares} 37. Qc6 {[%emt 0:00:34]} Na8 {[%emt 0:01:14]} 38. Ba6 {[%emt 0:00:20] Weighted Error Value: White=0.03 (flawless) /Black=0.22 (precise)} 1-0

[Event "XX Gran Hotel Bali-A 2023"]
[Site "Benidorm"]
[Date "2023.12.02"]
[Round "1.2"]
[White "Potawad Anirudhha"]
[Black "Mitrabha, Guha"]
[Result "0-1"]
[ECO "B22"]
[WhiteElo "2075"]
[BlackElo "2516"]
[Annotator "TA"]
[PlyCount "72"]
[EventDate "2023.12.02"]
[EventType "swiss"]
[EventCountry "ESP"]
[SourceTitle "playchess.com"]
[Source "ChessBase"]
[SourceQuality "1"]
[TimeControl "5400+30"]

{[%evp 16,72,-25,-30,-15,-39,15,-16,0,0,0,0,0,0,8,8,8,0,69,72,72,76,293,-94,-99,-140,-136,-336,-123,-225,-222,-220,-208,-215,-210,-210,-204,-222,-196,-240,-179,-192,-168,-172,-182,-177,-160,-279,-289,-247,-225,-373,-368,-671,-343,-559,-277,-1245,-1043]} 1. e4 {[%emt 0:00:04]} e6 {[%emt 0:04:01]} 2. d4 {[%emt 0:00:16]} d5 {[%emt 0:00:02]} 3. exd5 {[%emt 0:01:33]} exd5 {[%emt 0:00:02]} 4. Bd3 {[%emt 0:01:18]} c5 {[%emt 0:00:07]} 5. dxc5 {[%emt 0:01:02]} Bxc5 {[%emt 0:00:07][%cal Bf8c5,Bc5b6,Bb6c7][%mdl 32]} 6. Nf3 {[%emt 0:00:04]} Nf6 {[%emt 0:00:04]} 7. O-O {[%emt 0:00:18]} O-O {[%emt 0:00:04]} 8. Nbd2 {[%emt 0:03:50][%cal Bb1d2,Bd2b3,Bb3d4][%mdl 32]} Nc6 {[%emt 0:00:14]} 9. c3 {[%emt 0:02:29]} Bb6 {[%emt 0:00:24] B22: Sicilian: 2 c3.} 10. h3 {[%emt 0:03:21]} h6 {[%emt 0:00:34]} (10... Qc7 $15 11. Nb3 Qd6 {[%mdl 64] Decoy}) 11. Nb3 {[%emt 0:01:22]} Ne4 {[%emt 0:00:08] The position is equal.} 12. Nbd4 {[%emt 0:01:31]} Re8 {[%emt 0:01:13]} 13. Be3 {[%emt 0:08:48]} Bc7 {[%emt 0:00:54] [#]} 14. Rc1 $146 {[%emt 0:02:56]} ({Predecessor:} 14. Qc2 a6 15. Rad1 Qf6 16. Rfe1 Bd7 17. Qb3 Qd6 18. Ne2 Ne5 19. Nxe5 Qxe5 {0-1 Cespedes Llaverias,L (2107)-Chalmeta Ugas,J (2142) Catalunya-chT GpB final 2019 (1.10)}) 14... Qf6 {[%emt 0:05:37]} 15. c4 {[%emt 0:06:33]} Nxd4 {[%emt 0:08:21]} 16. Bxd4 {[%emt 0:03:06]} Qd6 {[%emt 0:01:34]} (16... Qg6 $11 17. cxd5 Bf4) 17. Re1 $14 {[%emt 0:03:42]} Bxh3 {[%emt 0:10:07]} 18. gxh3 {[%emt 0:25:45] aiming for cxd5.} Ng5 $2 {[%emt 0:00:35]} (18... Qg6+ $16 19. Kf1 Qf5) 19. Ne5 $2 {[%emt 0:07:31] [#]} (19. Rxe8+ $18 Rxe8 20. Kf1 (20. Bxa7 $2 Qf4 $19)) 19... Qf6 $1 $17 {[%emt 0:00:39]} 20. Kg2 {[%emt 0:06:29][%cal Od1g4]} Bxe5 {[%emt 0:00:10]} 21. Qe2 $2 {[%emt 0:03:02]} (21. Rxe5 $17 Rxe5 22. cxd5) 21... Ne4 $2 {[%emt 0:01:00]} (21... Bxd4 $2 22. Qxe8+ Rxe8 23. Rxe8#) (21... dxc4 $19 {and Black stays clearly on top.} 22. Rxc4 Qe6) 22. Bxe4 {[%emt 0:06:36]} (22. cxd5 $17 Bxd4 23. Bxe4) 22... dxe4 $19 {[%emt 0:01:38]} ({Not} 22... Bxd4 23. cxd5 Bxb2 24. Rb1 $17) 23. Bxe5 {[%emt 0:00:11]} Rxe5 {[%emt 0:00:02]} ({Stronger than} 23... Qxe5 24. Rcd1) 24. Rc3 {[%emt 0:00:14]} Rae8 {[%emt 0:03:04]} ({Worse is} 24... e3 25. Rxe3 Rxe3 26. Qxe3 $17) 25. Rg3 {[%emt 0:00:35]} h5 {[%emt 0:00:02]} 26. b3 {[%emt 0:01:17]} g6 {[%emt 0:01:56]} 27. Qe3 {[%emt 0:01:21]} b6 {[%emt 0:00:19]} 28. Rd1 {[%emt 0:00:36]} Qe6 {[%emt 0:01:47]} 29. Rd2 {[%emt 0:00:44]} Kh7 {[%emt 0:00:08]} 30. Rd4 {[%emt 0:01:56]} Rf5 {[%emt 0:00:11]} 31. Qe2 {[%emt 0:01:07]} (31. Qd2 $17) 31... Qf6 {[%emt 0:00:35]} 32. Rd2 {[%emt 0:00:21]} Ree5 {[%emt 0:00:15]} 33. Kg1 {[%emt 0:01:18]} (33. a4 {was worth a try.}) 33... Rf3 {[%emt 0:00:16]} 34. Kg2 $2 {[%emt 0:00:33]} (34. Rd5 Rxd5 35. cxd5) 34... Kg7 {[%emt 0:00:20] [#] ...Ref5 is the strong threat.} 35. b4 $2 {[%emt 0:02:57]} (35. Rd5 {is the only way for White.} Rxd5 36. cxd5) 35... Qf4 {[%emt 0:01:22]} (35... h4 $142 36. Rg4 Ref5 37. Qxe4 Rxf2+ 38. Rxf2 Rxf2+ 39. Kh1 Qa1+ 40. Rg1 Qc3) 36. Rc2 $2 {[%emt 0:00:55]} (36. Rd5) 36... Rg5 {[%emt 0:00:24] An exciting game.   Weighted Error Value: White=0.74/Black=0.63} 0-1

[Event "XX Gran Hotel Bali-A 2023"]
[Site "Benidorm"]
[Date "2023.12.02"]
[Round "1.3"]
[White "Solodovnichenko, Yuri"]
[Black "Exposito Milan, Adrian"]
[Result "1/2-1/2"]
[ECO "B70"]
[WhiteElo "2490"]
[BlackElo "2057"]
[Annotator "TA"]
[PlyCount "111"]
[EventDate "2023.12.02"]
[EventType "swiss"]
[EventCountry "ESP"]
[SourceTitle "playchess.com"]
[Source "ChessBase"]
[SourceQuality "1"]
[TimeControl "5400+30"]

{[%evp 17,111,10,29,9,27,0,1,0,19,-12,0,-7,-2,2,0,4,6,-18,-12,-14,-12,-74,-32,-33,0,-18,0,0,0,0,16,27,20,10,22,5,10,0,37,41,36,38,48,39,56,33,52,33,33,33,35,24,25,25,27,24,33,26,33,33,34,25,26,26,26,22,22,0,1,-8,-8,-8,-8,-8,-8,-8,-8,-8,-8,-8,-8,-8,-8,-8,0,-8,-8,-8,-8,-8,-8,-8,-8,-8,-8,-8]} 1. e4 {[%emt 0:00:02]} c5 {[%emt 0:00:39]} 2. Nf3 {[%emt 0:00:05]} d6 {[%emt 0:00:28]} 3. d4 {[%emt 0:00:40]} cxd4 {[%emt 0:00:30]} 4. Nxd4 {[%emt 0:00:05]} Nf6 {[%emt 0:00:56]} 5. Nc3 {[%emt 0:00:03]} g6 {[%emt 0:01:05]} 6. Bc4 {[%emt 0:00:28]} Bg7 {[%emt 0:01:42]} 7. O-O {[%emt 0:00:05]} Nc6 {[%emt 0:01:58]} 8. Re1 {[%emt 0:03:20] is the legacy move (8.h3).} O-O {[%emt 0:01:50]} 9. h3 {[%emt 0:01:04]} Bd7 {[%emt 0:06:38]} 10. Bg5 {[%emt 0:02:39] was the old line (10.Nf3). B70: Sicilian Dragon: 6 g3 and 6 Be2 (without a later Be3).} Rc8 {[%emt 0:07:03]} 11. Nxc6 {[%emt 0:01:19]} Bxc6 {[%emt 0:02:06]} 12. Bb3 {[%emt 0:08:58]} h6 {[%emt 0:14:54]} 13. Bh4 {[%emt 0:02:08]} Nd7 {[%emt 0:05:21]} 14. Qd2 {[%emt 0:02:02] [#]} b5 $146 {[%emt 0:04:31]} ({Predecessor:} 14... Nc5 15. f3 a5 16. Rab1 b5 17. Ne2 g5 18. Bf2 e6 19. c3 Nxb3 20. axb3 d5 {1-0 Lanc,A (2344)-Sluka,R (2319) CZE-chT1E 1415 2014 (6.3)}) 15. a3 {[%emt 0:10:53]} g5 {[%emt 0:07:10]} 16. Bg3 {[%emt 0:00:12]} Nc5 {[%emt 0:01:09]} 17. Bd5 {[%emt 0:08:19]} Bxc3 {[%emt 0:09:04]} 18. bxc3 {[%emt 0:00:13]} e5 {[%emt 0:01:05]} 19. Rab1 {[%emt 0:16:48]} (19. Rad1 $11 {keeps the balance.}) 19... a6 {[%emt 0:01:27]} 20. Rbd1 {[%emt 0:00:10]} Qf6 {[%emt 0:02:20]} 21. Re3 {[%emt 0:05:35]} Qg6 {[%emt 0:07:30]} 22. f3 {[%emt 0:00:48]} Bxd5 {[%emt 0:04:19]} 23. Qxd5 {[%emt 0:00:07]} Rfd8 {[%emt 0:00:36]} 24. c4 {[%emt 0:01:32]} bxc4 {[%emt 0:03:22]} 25. Qxc4 {[%emt 0:00:09]} Qe6 {[%emt 0:00:37]} 26. Rd5 {[%emt 0:01:10]} Qe7 {[%emt 0:05:52]} 27. Rc3 {[%emt 0:03:51]} Qb7 {[%emt 0:05:10][%cal Oc5e4] [#] ...Nxe4! is the strong threat.} (27... Kg7 $5 {[%cal Rc5e4]} 28. Qb4 (28. Bxe5+ dxe5 29. Rxc5 Rd1+ 30. Kf2 Rd2+ 31. Kg1 Rd1+ 32. Kf2 Rd2+ 33. Kg1 Rd1+ $11) 28... g4 $14) 28. Qb4 {[%emt 0:03:10]} Qxb4 {[%emt 0:01:40]} 29. axb4 {[%emt 0:00:04]} Nb7 {[%emt 0:00:16]} 30. Rdd3 {[%emt 0:02:41]} Kf8 {[%emt 0:00:40]} 31. Kf1 {[%emt 0:02:29]} Ke7 {[%emt 0:00:33]} 32. Be1 {[%emt 0:02:22]} Kd7 {[%emt 0:00:56]} 33. Ke2 {[%emt 0:01:35]} Rxc3 {[%emt 0:01:40]} 34. Rxc3 {[%emt 0:02:12]} Rc8 $1 {[%emt 0:00:34]} 35. Rxc8 {[%emt 0:00:54]} Kxc8 $11 {[%emt 0:00:02][%mdl 4096] Endgame KB-KN} 36. Kd3 {[%emt 0:03:20]} Kd7 {[%emt 0:00:44]} 37. Bd2 {[%emt 0:06:59]} Nd8 {[%emt 0:00:44]} 38. Be3 {[%emt 0:00:27]} Kc6 {[%emt 0:02:19]} 39. c4 {[%emt 0:00:38]} Ne6 {[%emt 0:00:00]} 40. g3 {[%emt 0:04:34]} f6 {[%emt 0:00:07]} 41. Kc3 {[%emt 0:00:04]} Ng7 {[%emt 0:00:36] The position is equal.} 42. Kb3 {[%emt 0:02:21]} f5 {[%emt 0:00:37]} 43. Ka4 {[%emt 0:00:40]} fxe4 {[%emt 0:00:27]} 44. fxe4 {[%emt 0:00:07]} Nh5 {[%emt 0:00:08]} 45. Ka5 {[%emt 0:04:22]} Kb7 {[%emt 0:00:28]} 46. h4 {[%emt 0:00:48]} Nxg3 {[%emt 0:00:43]} 47. hxg5 {[%emt 0:00:05]} hxg5 {[%emt 0:00:04]} (47... Nxe4 $2 48. g6 $18) 48. Bxg5 {[%emt 0:00:25]} Nxe4 {[%emt 0:00:24]} 49. Be3 {[%emt 0:00:44]} Nc3 {[%emt 0:00:44]} 50. Bd2 {[%emt 0:00:59]} Ne4 {[%emt 0:00:32]} (50... Nb1 $5 51. Bc1 $8 Nc3 $11) 51. Be1 {[%emt 0:00:39]} Ka7 {[%emt 0:00:41]} 52. b5 {[%emt 0:00:34]} axb5 {[%emt 0:00:10]} 53. Kxb5 {[%emt 0:00:01]} Kb7 {[%emt 0:00:19]} 54. Bb4 {[%emt 0:00:15]} Kc7 {[%emt 0:00:27]} 55. c5 {[%emt 0:00:19]} dxc5 {[%emt 0:01:09]} 56. Bxc5 {[%emt 0:00:04] Weighted Error Value: White=0.10 (very precise) /Black=0.06 (flawless)} 1/2-1/2

[Event "XX Gran Hotel Bali-A 2023"]
[Site "Benidorm"]
[Date "2023.12.02"]
[Round "1.4"]
[White "Gomez Aguirre, Juan Alberto"]
[Black "Zanan, Evgeny"]
[Result "1/2-1/2"]
[ECO "E24"]
[WhiteElo "2068"]
[BlackElo "2486"]
[Annotator "TA"]
[PlyCount "80"]
[EventDate "2023.12.02"]
[EventType "swiss"]
[EventCountry "ESP"]
[SourceTitle "playchess.com"]
[Source "ChessBase"]
[SourceQuality "1"]
[TimeControl "5400+30"]

{[%evp 16,80,1,0,3,0,19,14,12,21,16,0,14,10,19,0,22,8,0,0,0,0,13,2,27,16,27,10,10,11,18,19,20,12,14,14,10,9,35,5,12,9,12,0,0,0,0,0,0,0,0,0,0,0,0,0,0,0,0,0,0,0,0,0,0,0,0]} 1. d4 {[%emt 0:00:03]} d5 {[%emt 0:00:31]} 2. c4 {[%emt 0:00:07]} e6 {[%emt 0:00:05]} 3. Nc3 {[%emt 0:00:06]} Nf6 {[%emt 0:00:07]} 4. cxd5 {[%emt 0:00:23]} exd5 {[%emt 0:00:06]} 5. Bg5 {[%emt 0:00:04]} Bb4 {[%emt 0:00:57]} 6. e3 {[%emt 0:01:18]} h6 {[%emt 0:06:02]} 7. Bxf6 {[%emt 0:03:28]} Qxf6 {[%emt 0:01:44]} 8. a3 {[%emt 0:00:09]} Bxc3+ {[%emt 0:01:05]} 9. bxc3 {[%emt 0:00:02]} O-O {[%emt 0:00:16] E24: Nimzo-Indian: Sämisch: Unusual Black 5th moves and 5...c5 sidelines.} 10. Bd3 {[%emt 0:04:18]} c5 {[%emt 0:01:08]} 11. Ne2 {[%emt 0:01:36]} Nc6 {[%emt 0:02:17]} 12. O-O {[%emt 0:03:30]} b6 {[%emt 0:14:27]} 13. Ng3 {[%emt 0:11:20] [#]} Re8 $146 {[%emt 0:10:58]} ({Predecessor:} 13... Be6 14. Qd2 Rac8 15. Rac1 Qe7 16. Qb2 c4 17. Bb1 f5 18. f3 Qg5 19. Rce1 Ne7 {1-0 Arikainen,M (1861)-Babanin,G (2147) St Petersburg Korchnoi Memorial op 2023 (7)}) 14. Re1 {[%emt 0:03:17]} Bd7 {[%emt 0:03:48]} 15. Qh5 {[%emt 0:06:51]} Qg5 {[%emt 0:04:39]} 16. Qxg5 {[%emt 0:03:07]} (16. Rab1 {keeps more tension.} Red8 17. Qxg5 hxg5 18. dxc5 bxc5 19. Red1) 16... hxg5 {[%emt 0:00:06]} 17. f3 {[%emt 0:04:58]} Rac8 {[%emt 0:09:57]} 18. Rac1 {[%emt 0:06:38]} Be6 {[%emt 0:14:23]} 19. Kf2 {[%emt 0:09:09]} g6 {[%emt 0:04:47]} 20. Ba6 {[%emt 0:04:54]} Rcd8 {[%emt 0:03:01]} 21. Bb5 {[%emt 0:01:57]} Bd7 {[%emt 0:02:39]} 22. e4 {[%emt 0:01:48]} Na5 {[%emt 0:01:28]} 23. Bxd7 {[%emt 0:01:57]} Rxd7 {[%emt 0:00:05]} 24. dxc5 {[%emt 0:02:17]} bxc5 {[%emt 0:00:26]} 25. exd5 {[%emt 0:01:01]} Rxe1 {[%emt 0:03:03]} 26. Rxe1 {[%emt 0:00:07] [#] Ne4 would be deadly.} Rxd5 $11 {[%emt 0:00:15][%mdl 4096] Endgame KRN-KRN} 27. Ne4 {[%emt 0:02:26] Nf6+ is the strong threat.} Kg7 {[%emt 0:02:40] Wards off Nf6. The position is equal.} 28. Rb1 {[%emt 0:01:17]} Nc4 {[%emt 0:07:50]} 29. Rb7 {[%emt 0:04:17]} a6 {[%emt 0:00:06]} 30. a4 {[%emt 0:01:30]} Nd6 {[%emt 0:04:42]} 31. Nxd6 {[%emt 0:01:07]} Rxd6 {[%emt 0:00:00] KR-KR} 32. Rc7 {[%emt 0:00:41]} Rd2+ {[%emt 0:00:13]} 33. Kg3 {[%emt 0:00:48]} Ra2 {[%emt 0:00:05]} 34. Rxc5 {[%emt 0:00:35]} Rxa4 {[%emt 0:00:08]} 35. Rxg5 {[%emt 0:00:11]} f5 {[%emt 0:00:05]} 36. h4 {[%emt 0:02:27] [#] Strongly threatening h5.} Kf6 {[%emt 0:00:27]} 37. f4 {[%emt 0:00:43]} Rc4 {[%emt 0:00:42]} 38. h5 {[%emt 0:00:19]} gxh5 {[%emt 0:00:36]} 39. Rxh5 {[%emt 0:00:06]} Rxc3+ {[%emt 0:00:03]} 40. Kh4 {[%emt 0:00:09]} Rc2 {[%emt 0:02:24] An even fight not without its subleties.   Weighted Error Value: White=0.04 (flawless) /Black=0.05 (flawless)} 1/2-1/2

[Event "XX Gran Hotel Bali-A 2023"]
[Site "Benidorm"]
[Date "2023.12.02"]
[Round "1.5"]
[White "Domingo Nunez, Ruben"]
[Black "Duraccio, Walter Mattia"]
[Result "1-0"]
[ECO "B12"]
[WhiteElo "2429"]
[BlackElo "2065"]
[Annotator "TA"]
[PlyCount "47"]
[EventDate "2023.12.02"]
[EventType "swiss"]
[EventCountry "ESP"]
[SourceTitle "playchess.com"]
[Source "ChessBase"]
[SourceQuality "1"]
[TimeControl "5400+30"]

{[%evp 9,47,0,25,14,33,39,34,31,31,31,45,52,66,62,117,125,122,101,101,80,136,133,138,93,85,84,172,150,231,91,79,69,71,85,185,170,676,679,1506,1579]} 1. e4 {[%emt 0:00:05]} c6 {[%emt 0:00:07]} 2. d4 {[%emt 0:00:06]} d5 {[%emt 0:00:06]} 3. f3 {[%emt 0:00:02]} e6 {[%emt 0:01:40]} 4. Nc3 {[%emt 0:00:22]} Bb4 {[%emt 0:00:05]} 5. Bd2 {[%emt 0:00:02]} dxe4 {[%emt 0:04:53]} 6. Nxe4 {[%emt 0:00:08] B12: Caro-Kann: Advance Variation.} Bxd2+ {[%emt 0:00:53]} (6... Qxd4 $2 7. c3 Qd8 8. cxb4 $18) 7. Qxd2 {[%emt 0:00:03]} Nf6 {[%emt 1:26:16]} 8. O-O-O {[%emt 0:01:04] White is slightly better.} O-O {[%emt 0:00:00] [#]} 9. h4 $146 {[%emt 0:07:23][%cal Bh2h4,Bh4h5,Bh5h6][%mdl 32]} ({Predecessor:} 9. g4 Nxe4 10. fxe4 e5 11. Be2 Qxd4 12. Qxd4 exd4 13. Rxd4 Be6 14. Nf3 Nd7 15. Ng5 {1-0 Czernek,T (2325)-Dudzinski,P (2186) Titled Tuesday intern op 10th Jan Early blitz 2023 (7)}) 9... Nbd7 {[%emt 0:00:00]} 10. h5 {[%emt 0:10:43]} Nxe4 {[%emt 0:00:00]} 11. fxe4 {[%emt 0:04:01]} e5 {[%emt 0:00:00]} (11... h6 $14) 12. h6 $16 {[%emt 0:12:34] hxg7 would be deadly.} g6 {[%emt 0:00:00]} 13. Nf3 {[%emt 0:01:43]} Qe7 {[%emt 0:00:00]} 14. Bc4 {[%emt 0:12:41]} (14. dxe5 {simplifies} Nxe5 15. Qc3 f6 16. Nxe5 fxe5 17. Bc4+) 14... a5 {[%emt 0:00:00]} ({Black should play} 14... b5) 15. a3 {[%emt 0:08:05] White has more active pieces. The black rooks are badly placed.} b5 {[%emt 0:00:00]} 16. Bb3 {[%emt 0:00:07]} b4 {[%emt 0:00:00]} 17. a4 {[%emt 0:03:53]} (17. dxe5 {keeps more tension.} Nc5 18. Qd6 Ra7 19. Rd4) 17... Ba6 {[%emt 0:00:00] [#]} (17... c5 $16 {was necessary.}) 18. dxe5 $1 $18 {[%emt 0:04:28]} Nxe5 {[%emt 0:00:00]} (18... Nc5 $16) 19. Qd4 {[%emt 0:09:11]} (19. Nxe5 $18 {and the rest is easy. And now Qf4 would win.} Qxe5 20. Qd6 Qxd6 21. Rxd6) 19... Rae8 $16 {[%emt 0:00:00]} 20. Qb6 $36 {[%emt 0:05:53][%mdl 2048] White has the initiative.} Be2 {[%emt 0:00:00][%csl LRd1,LRf3] [#]} 21. Nxe5 {[%emt 0:00:13]} Qg5+ {[%emt 0:00:00]} (21... Qxe5 $16 22. Rd2 Bg4) 22. Kb1 $18 {[%emt 0:00:03] Nxf7 is the strong threat.} Bxd1 $2 {[%emt 0:00:00]} (22... Rxe5 $2 23. Rd7 Ree8 24. Qf2 $18) (22... Qxe5 23. Rd2 Bg4) 23. Nd7 {[%emt 0:04:49] Hoping for Qd4.} Bh5 {[%emt 0:00:43]} 24. Qd4 {[%emt 0:00:07] Weighted Error Value: White=0.18 (very precise) /Black=0.57} 1-0